fUSD/lending_fUSD_20260511
["ID","MTS","AMOUNT","RATE_DAILY","PERIOD"]
[421994617,1778431832000,-500.0,0.00014999,2]
[421994650,1778431837000,-3.11245035,0.00014871,2]
[421994649,1778431837000,-500.0,0.00013998,2]
[421994651,1778431837000,-437.00295101,0.00014871,2]
[421994652,1778431837000,-59.88459864,0.00014871,2]
[421994655,1778431837000,-18202.51107202,0.00015,2]
[421994653,1778431837000,-25679.69953497,0.00015,2]
[421994654,1778431837000,-40632.49999999,0.00015,2]
[421994895,1778431839000,-7275.3904093,0.00015,2]
[421994888,1778431839000,-399.735,0.00015,2]
[421994853,1778431839000,-963.76004824,0.00015,2]
[421994937,1778431840000,-6446.96267314,0.00015,2]
[421994935,1778431840000,-11012.0001,0.00015,2]
[421994933,1778431840000,-1166.14548875,0.00015,2]
[421994925,1778431840000,-867.41673316,0.00015,2]
[421995289,1778431842000,-17330.16778588,0.00015,2]
[421995318,1778431843000,-1046.88928713,0.00015,2]
[421995343,1778431843000,-81676.998,0.00015,2]
[421995327,1778431843000,-333.62070361,0.00015,2]
[421995833,1778431848000,-133479.4668406,0.00015,2]
[421995831,1778431848000,-912.0,0.00014998,2]
[421995832,1778431848000,-14207.0711594,0.00014998,2]
[421995844,1778431849000,-200.0,0.00015,2]
[421995846,1778431849000,-250.0,0.00015068,2]
[421995848,1778431849000,-200.0,0.0001515,2]
[421995845,1778431849000,-330.0,0.00015014,3]
[421995842,1778431849000,-151.0,0.00015,2]
[421995843,1778431849000,-151.0,0.00015,2]
[421995834,1778431849000,-1925.89296207,0.00015,2]
[421995839,1778431849000,-200.0,0.00015,2]
[421995835,1778431849000,-5215.24411194,0.00015,2]
[421995837,1778431849000,-200.0,0.00015,2]
[421995836,1778431849000,-883.7175491,0.00015,10]
[421995853,1778431849000,-150.0,0.00015243,2]
[421995841,1778431849000,-151.0,0.00015,2]
[421995851,1778431849000,-150.0,0.00015228,2]
[421995838,1778431849000,-151.0,0.00015,2]
[421995847,1778431849000,-300.0,0.00015068,2]
[421995849,1778431849000,-160.5,0.00015151,2]
[421995876,1778431849000,-88.80842942,0.00017999,2]
[421995866,1778431849000,-151.0,0.00016438,2]
[421995861,1778431849000,-284.0,0.00015753,2]
[421995862,1778431849000,-300.0,0.00016,2]
[421995858,1778431849000,-1003.1,0.00015737,2]
[421995873,1778431849000,-204.07,0.00017505,2]
[421995840,1778431849000,-151.0,0.00015,2]
[421995864,1778431849000,-174.62,0.0001605,2]
[421995856,1778431849000,-1221.6218003,0.00015539,2]
[421995868,1778431849000,-2301.97317996,0.00016788,2]
[421995869,1778431849000,-2486.09748246,0.00016789,2]
[421995854,1778431849000,-300.0,0.00015288,2]
[421995871,1778431849000,-1003.1,0.00017486,2]
[421995874,1778431849000,-2433.96744662,0.00017759,2]
[421995859,1778431849000,-2640.18,0.00015737,2]
[421995930,1778431931000,500.0,0.00041012,120]
[421995928,1778431931000,500.0,0.00041012,120]
[421995927,1778431931000,500.0,0.00041012,120]
[421995929,1778431931000,500.0,0.00041012,120]
[421995932,1778431932000,377.59587336,0.00041012,120]
[421995931,1778431932000,500.0,0.00041012,120]
[421995936,1778432150000,200.0,0.00041012,120]
[421995938,1778432251000,150.59,8.067e-05,2]
[421995939,1778432252000,150.59,0.0001065,2]
[421995943,1778432594000,260362.61659324,0.00041011,120]
[421995944,1778432692000,150.0,0.00027397,120]
[421995947,1778432854000,-211.23,0.00013134,2]
[421995948,1778432854000,-123.47530667,0.00013167,2]
[421995953,1778432971000,-1340.46213,0.00013167,2]
[421995981,1778433031000,-2080.17592889,0.0001389,2]
[421995979,1778433031000,-383.03264827,0.00013873,2]
[421995978,1778433031000,-500.0,0.00013873,2]
[421995977,1778433031000,-500.0,0.00013873,2]
[421995976,1778433031000,-549.7276,0.00013798,2]
[421995973,1778433031000,-1841.57854404,0.00013798,2]
[421995975,1778433031000,-6075.176,0.00013798,2]
[421995974,1778433031000,-500.0,0.00013798,2]
[421995972,1778433031000,-354678.516,0.00013797,2]
[421995971,1778433031000,-300.0,0.00013796,2]
[421995967,1778433031000,-325.0,0.00013711,2]
[421995968,1778433031000,-150.0,0.00013711,2]
[421995970,1778433031000,-1200.0,0.00013795,2]
[421995966,1778433031000,-230.89038743,0.000137,2]
[421995964,1778433031000,-469.68,0.00013647,2]
[421995962,1778433031000,-200.0,0.00013336,2]
[421995965,1778433031000,-271.13161226,0.000137,2]
[421995963,1778433031000,-535.18,0.00013391,2]
[421995959,1778433031000,-2162.651697,0.00013167,2]
[421995983,1778433031000,-850.4,0.00013896,2]
[421995960,1778433031000,-150.59,0.00013234,2]
[421995969,1778433031000,-300.0,0.00013795,2]
[421995961,1778433031000,-1201.24,0.00013277,2]
[421995982,1778433031000,-299.99,0.00013896,2]
[421995989,1778433031000,-500.0,0.00013897,2]
[421995980,1778433031000,-163.45,0.00013873,2]
[421996015,1778433031000,-500.0,0.00013897,2]
[421996013,1778433031000,-178.42613074,0.00013897,2]
[421996011,1778433031000,-500.0,0.00013897,2]
[421996009,1778433031000,-545.48241039,0.00013897,2]
[421995998,1778433031000,-500.0,0.00013897,2]
[421995996,1778433031000,-500.0,0.00013897,2]
[421996000,1778433031000,-500.0,0.00013897,2]
[421995992,1778433031000,-496.88754965,0.00013897,2]
[421995993,1778433031000,-500.0,0.00013897,2]
[421996007,1778433031000,-500.0,0.00013897,2]
[421995995,1778433031000,-237.95833529,0.00013897,2]
[421996005,1778433031000,-304.0517514,0.00013897,2]
[421995990,1778433031000,-500.0,0.00013897,2]
[421996003,1778433031000,-500.0,0.00013897,2]
[421995991,1778433031000,-509.43717845,0.00013897,2]
[421995987,1778433031000,-500.0,0.00013897,2]
[421995986,1778433031000,-954.35,0.00013897,2]
[421995988,1778433031000,-500.0,0.00013897,2]
[421995985,1778433031000,-1577.09,0.00013897,2]
[421995984,1778433031000,-150.0,0.00013896,2]
[421995994,1778433031000,-500.0,0.00013897,2]
[421996026,1778433032000,-2101.198,0.00013898,2]
[421996019,1778433032000,-500.0,0.00013897,2]
[421996021,1778433032000,-500.0,0.00013897,2]
[421996024,1778433032000,-198.79181019,0.00013897,2]
[421996017,1778433032000,-500.0,0.00013897,2]
[421996034,1778433032000,-289.87537014,0.00013898,2]
[421996028,1778433032000,-169.123,0.00013898,2]
[421996031,1778433032000,-167.0,0.00013898,2]
[421996033,1778433032000,-979.656926,0.00013898,2]
[421996032,1778433032000,-155729.52677667,0.00013898,2]
[421996030,1778433032000,-1988.87798604,0.00013898,2]
[421996072,1778433037000,-500.0,0.00013796,2]
[421996073,1778433037000,-500.0,0.00013796,2]
[421996074,1778433037000,-500.0,0.00013796,2]
[421996075,1778433037000,-500.0,0.00013796,2]
[421996076,1778433037000,-500.0,0.00013796,2]
[421996079,1778433037000,-500.0,0.00013796,2]
[421996078,1778433037000,-500.0,0.00013796,2]
[421996080,1778433037000,-500.0,0.00013796,2]
[421996077,1778433037000,-500.0,0.00013796,2]
[421996081,1778433038000,-622.79346187,0.00013796,2]
[421996088,1778433038000,-91646.73309593,0.00013898,2]
[421996087,1778433038000,-500.0,0.00013897,2]
[421996089,1778433038000,-1558.02445467,0.00013898,2]
[421996085,1778433038000,-500.0,0.00013897,2]
[421996083,1778433038000,-500.0,0.00013796,2]
[421996082,1778433038000,-500.0,0.00013796,2]
[421996086,1778433038000,-500.0,0.00013897,2]
[421996084,1778433038000,-500.0,0.00013796,2]
[421996090,1778433038000,-25739.58413361,0.00013898,2]
[421996104,1778433043000,-6654.27745045,0.00013898,2]
[421996103,1778433043000,-46386.02141157,0.00013898,2]
[421996115,1778433044000,-911.04255767,0.00013898,2]
[421996113,1778433044000,-44485.60372854,0.00013898,2]
[421996114,1778433044000,-343.208083,0.00013898,2]
[421996118,1778433045000,-6332.39122156,0.00013898,2]
[421996127,1778433045000,-1000.0,0.00014421,2]
[421996120,1778433045000,-469.68,0.00013988,2]
[421996126,1778433045000,-469.68,0.00014329,2]
[421996122,1778433045000,-500.0,0.00013998,2]
[421996121,1778433045000,-500.0,0.00013998,2]
[421996125,1778433045000,-5204.55,0.00014225,2]
[421996119,1778433045000,-170659.52399019,0.00013898,2]
[421996124,1778433045000,-187.78,0.00014221,2]
[421996128,1778433045000,-379.76289057,0.00014421,2]
[421996131,1778433045000,-469.68,0.0001467,2]
[421996129,1778433045000,-288.36546,0.00014447,2]
[421996133,1778433045000,-500.0,0.00014871,2]
[421996132,1778433045000,-6748.16,0.00014812,2]
[421996130,1778433045000,-291.42205796,0.00014484,2]
[421996123,1778433045000,-500.0,0.00014051,2]
[421996140,1778433046000,-500.0,0.00014973,2]
[421996152,1778433046000,-500.0,0.00014999,2]
[421996151,1778433046000,-500.0,0.00014999,2]
[421996141,1778433046000,-500.0,0.00014973,2]
[421996138,1778433046000,-1000.0,0.00014968,2]
[421996135,1778433046000,-339.54621399,0.000149,2]
[421996137,1778433046000,-1201.24,0.00014936,2]
[421996134,1778433046000,-500.0,0.00014871,2]
[421996139,1778433046000,-578.26741424,0.00014973,2]
[421996145,1778433046000,-500.0,0.00014973,2]
[421996136,1778433046000,-173.36836108,0.000149,2]
[421996142,1778433046000,-500.0,0.00014973,2]
[421996143,1778433046000,-500.0,0.00014973,2]
[421996147,1778433046000,-502.49893683,0.00014973,2]
[421996159,1778433046000,-668.70900692,0.00015,2]
[421996158,1778433046000,-33458.87042425,0.00015,2]
[421996157,1778433046000,-317.90634479,0.00015,2]
[421996156,1778433046000,-13971.78330989,0.00015,2]
[421996155,1778433046000,-571.3861099,0.00014999,2]
[421996154,1778433046000,-500.0,0.00014999,2]
[421996148,1778433046000,-162.79241857,0.0001499,2]
[421996149,1778433046000,-500.0,0.00014999,2]
[421996160,1778433046000,-736.85,0.00015,2]
[421996146,1778433046000,-500.0,0.00014973,2]
[421996144,1778433046000,-501.10146709,0.00014973,2]
[421996153,1778433046000,-500.0,0.00014999,2]
[421996150,1778433046000,-500.0,0.00014999,2]
[421996162,1778433053000,195.02,0.00025342,120]
[421996165,1778433054000,195.02,0.00027068,120]
[421996164,1778433054000,195.02,0.00026493,120]
[421996163,1778433054000,195.02,0.00025918,120]
[421996166,1778433141000,500.0,0.00027397,120]
[421996172,1778433821000,212.3,0.00027397,120]
[421996173,1778433908000,153.36,6.765e-05,2]
[421996178,1778434039000,-317.70792646,0.00013067,2]
[421996176,1778434039000,-250.0,0.00012419,2]
[421996177,1778434039000,-189.20460672,0.00012806,2]
[421996175,1778434039000,-207.11933784,0.00012419,2]
[421996174,1778434039000,-371.71422836,0.00011855,2]
[421996180,1778434157000,-1295.23211367,0.00013201,2]
[421996179,1778434157000,-80.47747354,0.00013067,2]
[421996183,1778434230000,172.92,1.15e-06,120]
[421996194,1778434233000,-300.0,0.00013696,2]
[421996191,1778434233000,-156.11,0.00013409,2]
[421996190,1778434233000,-200.0,0.0001337,2]
[421996193,1778434233000,-267.59,0.00013522,2]
[421996188,1778434233000,-150.0,0.00013256,2]
[421996192,1778434233000,-1120.75,0.00013507,2]
[421996189,1778434233000,-153.36,0.00013265,2]
[421996195,1778434233000,-296.0,0.00013696,2]
[421996187,1778434233000,-3199.96788633,0.00013201,2]
[421996200,1778434233000,-20.98668437,0.00013796,2]
[421996205,1778434233000,-2243.37324909,0.00013797,2]
[421996196,1778434233000,-1200.0,0.00013696,2]
[421996203,1778434233000,-218.63080764,0.00013796,2]
[421996202,1778434233000,-17.23513257,0.00013796,2]
[421996204,1778434233000,-260.36919236,0.00013797,2]
[421996198,1778434233000,-1657.4206896,0.00013697,2]
[421996197,1778434233000,-27297.6086,0.00013697,2]
[421996201,1778434233000,-479.01331563,0.00013796,2]
[421996199,1778434233000,-200.0,0.00013699,2]
[421996210,1778434238000,-8393.22571905,0.00013797,2]
[421996211,1778434238000,-25739.58413361,0.00013797,2]
[421996209,1778434238000,-1013.0,0.00013797,2]
[421996237,1778434240000,-406.5945204,0.00013797,2]
[421996236,1778434240000,-1627.26,0.00013797,2]
[421996235,1778434240000,-9691.76782825,0.00013797,2]
[421996259,1778434243000,-9045.99999988,0.00013797,2]
[421996260,1778434243000,-419.96222991,0.00013797,2]
[421996261,1778434243000,-6405.64218561,0.00013797,2]
[421996262,1778434243000,-1442.51267679,0.00013797,2]
[421996286,1778434246000,-251.93,0.00014268,2]
[421996289,1778434246000,-234.30583749,0.00014374,2]
[421996287,1778434246000,-163.66,0.00014325,2]
[421996290,1778434246000,-150.0,0.000147,2]
[421996295,1778434246000,-24472.92221711,0.00014999,2]
[421996296,1778434246000,-500.0,0.00014999,2]
[421996291,1778434246000,-163.66,0.00014787,2]
[421996305,1778434246000,-506.97102082,0.00014999,2]
[421996294,1778434246000,-226.36414266,0.00014964,2]
[421996292,1778434246000,-1789.9901874,0.00014909,2]
[421996293,1778434246000,-173.36836108,0.00014909,2]
[421996297,1778434246000,-581.83768727,0.00014999,2]
[421996302,1778434246000,-190.21545133,0.00014999,2]
[421996298,1778434246000,-500.0,0.00014999,2]
[421996288,1778434246000,-300.0,0.00014374,2]
[421996285,1778434246000,-160.32,0.00014227,2]
[421996283,1778434246000,-10854.6230274,0.0001407,2]
[421996282,1778434246000,-3241.5736908,0.0001407,2]
[421996299,1778434246000,-500.0,0.00014999,2]
[421996269,1778434246000,-42058.19446109,0.00013797,2]
[421996270,1778434246000,-93678.52680396,0.00013797,2]
[421996271,1778434246000,-500.0,0.00013797,2]
[421996272,1778434246000,-500.0,0.00013797,2]
[421996274,1778434246000,-199.6,0.00013863,2]
[421996281,1778434246000,-5648.7052792,0.0001407,2]
[421996284,1778434246000,-6488.0042838,0.00014188,2]
[421996275,1778434246000,-500.0,0.00013896,2]
[421996280,1778434246000,-834.6776354,0.0001407,2]
[421996279,1778434246000,-250.0,0.00014,2]
[421996273,1778434246000,-163.66,0.00013863,2]
[421996276,1778434246000,-500.0,0.00013896,2]
[421996278,1778434246000,-500.0,0.00013896,2]
[421996277,1778434246000,-500.0,0.00013896,2]
[421996300,1778434246000,-539.15426713,0.00014999,2]
[421996312,1778434246000,-500.0,0.00014999,2]
[421996308,1778434246000,-500.0,0.00014999,2]
[421996336,1778434246000,-500.0,0.00014999,2]
[421996326,1778434246000,-500.0,0.00014999,2]
[421996327,1778434246000,-500.0,0.00014999,2]
[421996324,1778434246000,-500.0,0.00014999,2]
[421996330,1778434246000,-500.0,0.00014999,2]
[421996329,1778434246000,-500.0,0.00014999,2]
[421996325,1778434246000,-500.0,0.00014999,2]
[421996328,1778434246000,-500.0,0.00014999,2]
[421996332,1778434246000,-500.0,0.00014999,2]
[421996331,1778434246000,-500.0,0.00014999,2]
[421996333,1778434246000,-500.0,0.00014999,2]
[421996304,1778434246000,-500.0,0.00014999,2]
[421996339,1778434246000,-19814.1741303,0.00015,2]
[421996338,1778434246000,-217839.74268063,0.00015,2]
[421996334,1778434246000,-500.0,0.00014999,2]
[421996335,1778434246000,-500.0,0.00014999,2]
[421996337,1778434246000,-384.80700577,0.00014999,2]
[421996319,1778434246000,-500.0,0.00014999,2]
[421996306,1778434246000,-500.0,0.00014999,2]
[421996301,1778434246000,-212.83622598,0.00014999,2]
[421996307,1778434246000,-500.0,0.00014999,2]
[421996311,1778434246000,-500.0,0.00014999,2]
[421996323,1778434246000,-500.0,0.00014999,2]
[421996318,1778434246000,-500.0,0.00014999,2]
[421996309,1778434246000,-500.0,0.00014999,2]
[421996310,1778434246000,-500.0,0.00014999,2]
[421996321,1778434246000,-500.0,0.00014999,2]
[421996320,1778434246000,-500.0,0.00014999,2]
[421996303,1778434246000,-500.0,0.00014999,2]
[421996313,1778434246000,-500.0,0.00014999,2]
[421996314,1778434246000,-500.0,0.00014999,2]
[421996316,1778434246000,-500.0,0.00014999,2]
[421996322,1778434246000,-500.0,0.00014999,2]
[421996565,1778435126000,156.67,7.363e-05,2]
[421996564,1778435126000,156.67,6.92e-05,2]
[421996569,1778435127000,156.67,9.136e-05,2]
[421996568,1778435127000,156.67,8.693e-05,2]
[421996567,1778435127000,156.67,8.25e-05,2]
[421996566,1778435127000,156.67,7.807e-05,2]
[421996570,1778435128000,156.67,9.58e-05,2]
[421996572,1778435128000,156.67,0.00010466,2]
[421996573,1778435128000,156.67,0.00010909,2]
[421996571,1778435128000,156.67,0.00010023,2]
[421996576,1778435346000,-150.0,0.00012119,2]
[421996575,1778435346000,-156.67,0.00011796,2]
[421996578,1778435346000,-105.42118276,0.00012466,2]
[421996577,1778435346000,-156.67,0.00012239,2]
[421996574,1778435346000,-156.67,0.00011353,2]
[421996590,1778435432000,-197.93534385,0.00013596,2]
[421996589,1778435432000,-1200.0,0.00013595,2]
[421996586,1778435432000,-2253.66888137,0.00013497,2]
[421996588,1778435432000,-156.67,0.00013569,2]
[421996587,1778435432000,-2372.02352189,0.00013497,2]
[421996585,1778435432000,-199.6,0.00013431,2]
[421996582,1778435432000,-246.3318257,0.000133,2]
[421996583,1778435432000,-293.48156329,0.000133,2]
[421996580,1778435432000,-156.67,0.00013126,2]
[421996581,1778435432000,-161.48,0.00013175,2]
[421996579,1778435432000,-156.67,0.00012682,2]
[421996591,1778435432000,-500.0,0.00013596,2]
[421996584,1778435432000,-5637.83844523,0.000133,2]
[421996593,1778435432000,-500.0,0.00013596,2]
[421996592,1778435432000,-268.55916973,0.00013596,2]
[421996596,1778435432000,-300.0,0.00013596,2]
[421996594,1778435432000,-625.38252602,0.00013596,2]
[421996613,1778435432000,-1254.41808677,0.00013597,2]
[421996608,1778435432000,-3464.11972123,0.00013597,2]
[421996610,1778435432000,-200257.34172954,0.00013597,2]
[421996607,1778435432000,-44.144535,0.00013597,2]
[421996604,1778435432000,-7431.51296606,0.00013597,2]
[421996603,1778435432000,-15928.72957303,0.00013597,2]
[421996609,1778435432000,-65644.7280899,0.00013597,2]
[421996602,1778435432000,-680.2122,0.00013597,2]
[421996600,1778435432000,-850.849,0.00013597,2]
[421996599,1778435432000,-2926.9968,0.00013597,2]
[421996611,1778435432000,-82461.52615163,0.00013597,2]
[421996595,1778435432000,-400.0505465,0.00013596,2]
[421996597,1778435432000,-300.0,0.00013596,2]
[421996606,1778435432000,-500.0,0.00013596,2]
[421996630,1778435438000,-500.0,0.00013596,2]
[421996628,1778435438000,-311.09244999,0.00013596,2]
[421996623,1778435438000,-433.25873599,0.00013596,2]
[421996625,1778435438000,-260.29099596,0.00013596,2]
[421996627,1778435438000,-113.09900404,0.00013596,2]
[421996626,1778435438000,-500.0,0.00013596,2]
[421996622,1778435438000,-500.0,0.00013596,2]
[421996631,1778435438000,-500.0,0.00013596,2]
[421996624,1778435438000,-239.70900404,0.00013596,2]
[421996632,1778435438000,-500.0,0.00013596,2]
[421996635,1778435438000,-2939.68715332,0.00013597,2]
[421996633,1778435438000,-500.0,0.00013596,2]
[421996643,1778435438000,-1424.07863051,0.00013597,2]
[421996629,1778435438000,-500.0,0.00013596,2]
[421996639,1778435438000,-763381.38956025,0.00013597,2]
[421996641,1778435438000,-8100.61258535,0.00013597,2]
[421996642,1778435438000,-426.8613753,0.00013597,2]
[421996638,1778435438000,-1086.4395005,0.00013597,2]
[421996637,1778435438000,-750.97674804,0.00013597,2]
[421996636,1778435438000,-733.44231273,0.00013597,2]
[421996634,1778435438000,-500.0,0.00013596,2]
[421996640,1778435438000,-25739.58413361,0.00013597,2]
[421996887,1778435440000,-5885.36290134,0.00013597,2]
[421996879,1778435440000,-84110.64027728,0.00013597,2]
[421996845,1778435440000,-474.50808334,0.00013597,2]
[421996842,1778435440000,-791.397,0.00013597,2]
[421996834,1778435440000,-7593.808309,0.00013597,2]
[421997279,1778435443000,-456.47447627,0.00013597,2]
[421997288,1778435443000,-322.94797957,0.00013597,2]
[421997281,1778435443000,-89.53894181,0.00013597,2]
[421997649,1778435446000,-33726.4545417,0.00014062,2]
[421997645,1778435446000,-15124.3215656,0.00014062,2]
[421997647,1778435446000,-474.5080834,0.00014062,2]
[421997651,1778435446000,-1541.6289895,0.00014062,2]
[421997669,1778435446000,-500.0,0.00014163,2]
[421997655,1778435446000,-501.72098573,0.00014073,2]
[421997657,1778435446000,-508.10149998,0.00014073,2]
[421997664,1778435446000,-500.0,0.00014073,2]
[421997611,1778435446000,-1587.51307862,0.00013597,2]
[421997666,1778435446000,-500.0,0.00014073,2]
[421997668,1778435446000,-500.0,0.00014163,2]
[421997660,1778435446000,-580.95916998,0.00014073,2]
[421997672,1778435446000,-500.0,0.00014163,2]
[421997680,1778435446000,-6055.63,0.00014374,2]
[421997682,1778435446000,-166.66,0.00014376,2]
[421997674,1778435446000,-666.643,0.00014163,2]
[421997676,1778435446000,-516.94609672,0.00014374,2]
[421997641,1778435446000,-200.0,0.00014061,2]
[421997661,1778435446000,-501.38522681,0.00014073,2]
[421997643,1778435446000,-500.0,0.00014061,2]
[421997633,1778435446000,-371.89,0.00013993,2]
[421997613,1778435446000,-2500.0,0.00013597,2]
[421997615,1778435446000,-166.66,0.00013699,2]
[421997614,1778435446000,-150.0,0.00013696,2]
[421997616,1778435446000,-227.81,0.00013793,2]
[421997617,1778435446000,-299.99,0.00013793,2]
[421997618,1778435446000,-425.19,0.00013793,2]
[421997619,1778435446000,-163.32,0.00013833,2]
[421997629,1778435446000,-250.0,0.00013951,2]
[421997620,1778435446000,-500.0,0.00013862,2]
[421997625,1778435446000,-300.0,0.00013951,2]
[421997623,1778435446000,-500.0,0.00013862,2]
[421997639,1778435446000,-500.0,0.0001406,2]
[421997635,1778435446000,-250.0,0.00014,2]
[421997637,1778435446000,-500.0,0.0001406,2]
[421997627,1778435446000,-316.98020239,0.00013951,2]
[421997631,1778435446000,-200.0,0.0001397,2]
[421997621,1778435446000,-500.0,0.00013862,2]
[421997678,1778435446000,-1420.54498649,0.00014374,2]
[421997690,1778435446000,-150.0,0.00014819,2]
[421997684,1778435446000,-500.0,0.00014438,2]
[421997735,1778435446000,-500.0,0.00014999,2]
[421997730,1778435446000,-533.54989741,0.00014999,2]
[421997737,1778435446000,-500.0,0.00014999,2]
[421997739,1778435446000,-500.0,0.00014999,2]
[421997741,1778435446000,-500.0,0.00014999,2]
[421997751,1778435446000,-500.0,0.00014999,2]
[421997753,1778435446000,-500.0,0.00014999,2]
[421997755,1778435446000,-568.06015006,0.00014999,2]
[421997759,1778435446000,-3452.80842712,0.00015,2]
[421997757,1778435446000,-792434.46105984,0.00015,2]
[421997747,1778435446000,-500.0,0.00014999,2]
[421997745,1778435446000,-500.0,0.00014999,2]
[421997762,1778435446000,-3968.75088875,0.00015,2]
[421997743,1778435446000,-500.0,0.00014999,2]
[421997749,1778435446000,-500.0,0.00014999,2]
[421997764,1778435446000,-11724.62628499,0.00015,2]
[421997686,1778435446000,-500.0,0.00014621,2]
[421997725,1778435446000,-500.0,0.00014999,2]
[421997733,1778435446000,-500.0,0.00014999,2]
[421997768,1778435446000,-707423.5045096,0.00015,2]
[421997727,1778435446000,-500.0,0.00014999,2]
[421997692,1778435446000,-910.94,0.00014899,2]
[421997688,1778435446000,-500.0,0.00014621,2]
[421997705,1778435446000,-1680.0,0.00014955,2]
[421997694,1778435446000,-9812.7996,0.000149,2]
[421997703,1778435446000,-420.0,0.00014901,2]
[421997698,1778435446000,-150.90942844,0.000149,2]
[421997701,1778435446000,-1014.29916624,0.000149,2]
[421997707,1778435446000,-300.0,0.00014956,2]
[421997697,1778435446000,-5000.0,0.000149,2]
[421997709,1778435446000,-152.0,0.00014994,2]
[421997713,1778435446000,-500.0,0.00014999,2]
[421997717,1778435446000,-500.0,0.00014999,2]
[421997719,1778435446000,-290.91,0.00014999,2]
[421997729,1778435446000,-500.0,0.00014999,2]
[421997723,1778435446000,-565.44255009,0.00014999,2]
[421997715,1778435446000,-500.0,0.00014999,2]
[421997711,1778435446000,-500.0,0.00014999,2]
[421997721,1778435446000,-500.0,0.00014999,2]
[421997770,1778435447000,-1118.325,0.00015,2]
[421998054,1778435799000,5000.0,0.00011,2]
[421998055,1778435828000,553.0,0.00011,2]
[421998057,1778436002000,1578.16,0.0001,2]
[421998064,1778436302000,162.34,0.00010323,2]
[421998063,1778436302000,162.34,6.973e-05,2]
[421998071,1778436447000,-348.02955289,0.00013496,2]
[421998072,1778436562000,-851.97044711,0.00013496,2]
[421998075,1778436562000,-250.0,0.00013496,2]
[421998074,1778436562000,-150.0,0.00013496,2]
[421998076,1778436562000,-6498.47198889,0.00013497,2]
[421998073,1778436562000,-180.0,0.00013496,2]
[421998120,1778436634000,-162.34,0.00013673,2]
[421998126,1778436634000,-500.0,0.00013698,2]
[421998124,1778436634000,-500.0,0.00013698,2]
[421998133,1778436634000,-509.68714748,0.00013698,2]
[421998122,1778436634000,-500.0,0.00013698,2]
[421998130,1778436634000,-500.0,0.00013698,2]
[421998135,1778436634000,-500.0,0.00013698,2]
[421998128,1778436634000,-500.0,0.00013698,2]
[421998118,1778436634000,-9999.99,0.00013673,2]
[421998115,1778436634000,-818.43,0.00013634,2]
[421998113,1778436634000,-42443.14371117,0.00013597,2]
[421998111,1778436634000,-547.13238378,0.00013596,2]
[421998114,1778436634000,-114501.88922087,0.00013597,2]
[421998110,1778436634000,-934.03,0.00013578,2]
[421998109,1778436634000,-500.0,0.00013554,2]
[421998108,1778436634000,-2341.9,0.00013521,2]
[421998106,1778436634000,-2500.0,0.00013497,2]
[421998107,1778436634000,-304.38,0.00013497,2]
[421998136,1778436634000,-500.0,0.00013698,2]
[421998104,1778436634000,-1200.0,0.00013496,2]
[421998102,1778436634000,-101934.02224412,0.00013397,2]
[421998103,1778436634000,-200.0,0.00013438,2]
[421998100,1778436634000,-77501.43515588,0.00013397,2]
[421998101,1778436634000,-954.0,0.00013397,2]
[421998112,1778436634000,-67260.78276796,0.00013597,2]
[421998137,1778436634000,-500.0,0.00013698,2]